[Event "3rd Manaus Open 2024"]
[Site "Manaus"]
[Date "2024.10.17"]
[Round "8.6"]
[White "Quintiliano, Renato R."]
[Black "Ribeiro, Matheus Mendes Domin"]
[Result "1-0"]
[ECO "E04"]
[WhiteElo "2513"]
[BlackElo "2250"]
[Annotator "TA"]
[PlyCount "67"]
[EventDate "2024.10.05"]
[EventType "swiss"]
[EventCountry "BRA"]
[SourceTitle "playchess.com"]
[Source "ChessBase"]
[SourceQuality "1"]
[TimeControl "5400+30"]

{[%evp 19,67,14,6,0,16,17,27,2,32,35,25,20,53,45,48,79,72,0,0,0,243,281,257,273,276,251,879,891,879,829,894,836,881,882,815,477,491,472,483,464,818,738,1070,806,2390,2175,5231,5143,1991,1895]} 1. d4 {[%emt 0:00:03]} d5 {[%emt 0:11:15]} 2. Nf3 {[%emt 0:00:16]} Nf6 {[%emt 0:00:25]} 3. g3 {[%emt 0:01:00]} e6 {[%emt 0:03:46]} 4. Bg2 {[%emt 0:00:12]} c5 {[%emt 0:04:13]} 5. c4 {[%emt 0:01:57]} dxc4 {[%emt 0:01:12]} 6. O-O {[%emt 0:00:19]} Nc6 {[%emt 0:00:17]} 7. Qa4 {[%emt 0:00:20]} Bd7 {[%emt 0:00:30]} 8. Qxc4 {[%emt 0:00:08]} b5 {[%emt 0:01:45]} 9. Qd3 {[%emt 0:00:16]} c4 {[%emt 0:02:28]} 10. Qd1 {[%emt 0:00:09]} Rc8 {[%emt 0:01:41]} 11. Bf4 {[%emt 0:00:59][%cal Oe2e4]} Be7 {[%emt 0:03:32]} 12. Nc3 {[%emt 0:02:19]} a6 {[%emt 0:07:47]} 13. a3 {[%emt 0:01:18] White has an edge.} O-O {[%emt 0:03:34]} 14. e4 {[%emt 0:02:06] d5 is the strong threat.} Na5 {[%emt 0:02:12]} 15. Qe2 {[%emt 0:01:37]} Nb3 {[%emt 0:02:01]} 16. Rad1 {[%emt 0:00:17]} Qb6 {[%emt 0:00:52]} 17. d5 {[%emt 0:15:58]} Bc5 {[%emt 0:07:18] [#]} 18. d6 {[%emt 0:11:16]} ({Better is} 18. dxe6 $1 $16 Bxe6 19. e5) 18... Bc6 $11 {[%emt 0:06:43]} 19. e5 {[%emt 0:03:09]} Nd5 {[%emt 0:03:06] [#] White stays focused until the end.} (19... Nd7 $1 $11 {and Black stays safe.}) 20. Nxd5 $1 $18 {[%emt 0:02:25]} Bxd5 {[%emt 0:02:43] [#]} 21. Rxd5 {[%emt 0:03:59][%mdl 512]} exd5 {[%emt 0:00:49]} 22. Ng5 {[%emt 0:14:16]} Rce8 {[%emt 0:13:57]} (22... Qb7 23. e6 h6) 23. Qh5 {[%emt 0:11:04][%csl Gg5][%cal Rh5h7] White is clearly winning.} ({Not} 23. Qc2 g6 $18) 23... h6 {[%emt 0:01:46] [#]} 24. Nxf7 $1 {[%emt 0:00:36][%mdl 512]} Qb7 {[%emt 0:02:38] [#]} 25. e6 $1 {[%emt 0:00:24][%mdl 512]} Rxe6 {[%emt 0:00:46] [#]} 26. Nxh6+ $1 {[%emt 0:00:24][%mdl 512]} gxh6 {[%emt 0:07:57]} 27. Bxd5 {[%emt 0:00:07]} Qf7 {[%emt 0:03:25] Prevents Qg6+} 28. Qg4+ {[%emt 0:06:08]} Kh7 {[%emt 0:00:28][%cal Ob3d4] And now ...Nd4! would win.} 29. Bxe6 {[%emt 0:00:08] This pair of bishops is nice.} ({But not} 29. Qxe6 Qxe6 30. Bxe6 Nd4 $18) 29... Qf6 {[%emt 0:00:04]} (29... Qg6 $142 30. d7 Nd4) 30. Bd5 {[%emt 0:01:45]} Nd4 {[%emt 0:02:48]} 31. Re1 {[%emt 0:01:24]} Nf5 {[%emt 0:01:24] Repels Re7+} 32. Be4 {[%emt 0:01:36] Bxf5+ would kill now.} Qg6 {[%emt 0:02:32]} 33. Qxg6+ {[%emt 0:00:14]} Kxg6 {[%emt 0:00:02]} 34. g4 {[%emt 0:19:21] Weighted Error Value: White=0.47/Black=0.39.  Loses game:     	---       	Black=1      Mistake:       	White=1     	Black=2      Inaccurate:     	---       	Black=3      OK:         	White=5     	Black=5      Best:        	White=3     	Black=1      Strong:       	White=1     	---        Brilliant:      	White=1     	---} 1-0

[Event "3rd Manaus Open 2024"]
[Site "Manaus"]
[Date "2024.10.16"]
[Round "8.7"]
[White "Flom, Gabriel"]
[Black "Da Silva, Lucas Fabricio De O"]
[Result "*"]
[ECO "D17"]
[WhiteElo "2460"]
[BlackElo "1802"]
[Annotator "TA"]
[PlyCount "63"]
[EventDate "2024.10.05"]
[EventType "swiss"]
[EventCountry "BRA"]
[SourceTitle "playchess.com"]
[Source "ChessBase"]
[SourceQuality "1"]
[TimeControl "5400+30"]

{[%evp 20,62,25,0,35,29,29,30,29,0,17,10,34,41,84,70,106,101,95,97,212,191,564,587,688,663,756,729,764,757,737,702,1210,1215,2807,2748,29984,29985,29994,29995,29995,29996,29996,29997,29999]} 1. d4 {[%emt 0:00:03]} d5 {[%emt 0:01:25]} 2. c4 {[%emt 1:31:27]} c6 {[%emt 0:01:09]} 3. Nc3 {[%emt 0:00:04]} Nf6 {[%emt 1:29:26]} 4. Nf3 {[%emt 0:00:06][%cal Bg1f3,Bf3e5,Be5c4,Bc4e3,Be3f5][%mdl 32]} dxc4 {[%emt 0:01:50]} 5. a4 {[%emt 1:32:43]} Bf5 {[%emt 0:00:42]} 6. Ne5 {[%emt 0:00:06]} Nbd7 {[%emt 0:00:40]} 7. Nxc4 {[%emt 0:00:05]} Qc7 {[%emt 0:00:18]} 8. g3 {[%emt 0:00:28]} e5 {[%emt 0:01:47]} 9. dxe5 {[%emt 0:00:06]} Nxe5 {[%emt 0:00:27]} 10. Bf4 {[%emt 0:00:12]} Nfd7 {[%emt 0:00:56]} 11. Bg2 {[%emt 0:00:37]} g5 {[%emt 1:25:41]} 12. Ne3 {[%emt 0:00:18]} gxf4 {[%emt 0:01:18]} 13. Nxf5 {[%emt 0:00:03]} O-O-O {[%emt 0:09:03][%cal Of4f3] White has an edge.} 14. O-O {[%emt 0:00:19]} fxg3 {[%emt 0:15:24]} 15. hxg3 {[%emt 0:00:05]} Nf6 {[%emt 0:07:33]} 16. Qc2 {[%emt 0:01:07]} Nfg4 {[%emt 0:03:28]} 17. Rfd1 {[%emt 0:02:48]} Bc5 {[%emt 0:03:35][%cal Bf8c5,Bc5b6,Bb6a5][%mdl 32]} 18. Ne4 {[%emt 0:01:06]} Bb6 {[%emt 0:03:21]} 19. e3 {[%emt 0:01:52] [#] b4 is the strong threat. The board is on fire. White is more active.} h5 {[%emt 0:02:30]} (19... Rxd1+ $16 20. Qxd1 Rd8) 20. b4 $18 {[%emt 0:05:59] Black must now prevent a5.} a5 $2 {[%emt 0:03:29]} (20... Rxd1+ {is more resistant.} 21. Rxd1 a6) 21. bxa5 {[%emt 0:00:57]} Rxd1+ {[%emt 0:00:13]} 22. Rxd1 {[%emt 0:00:29]} Bxa5 {[%emt 0:00:14]} 23. Ned6+ {[%emt 0:03:52]} Kb8 {[%emt 0:34:50][%cal Bc8b8,Bb8a7,Ba7a8][%mdl 32]} 24. Rb1 {[%emt 0:02:30]} b6 {[%emt 0:01:04][%cal Bb7b6,Bb6a5][%mdl 32]} 25. f4 {[%emt 0:11:21]} Nd7 {[%emt 0:13:09]} 26. Nc4 {[%emt 0:00:26]} Ka7 {[%emt 0:03:05]} 27. Nxa5 {[%emt 0:00:16]} bxa5 {[%emt 0:00:07]} 28. Nd4 {[%emt 0:01:00] White mates.} Qd6 {[%emt 0:07:01]} 29. Nxc6+ {[%emt 0:00:10]} Ka8 {[%emt 0:00:12]} 30. Nd8+ {[%emt 0:00:18]} Ka7 {[%emt 0:00:22]} 31. Rb7+ {[%emt 0:00:05]} Ka6 {[%emt 0:00:14]} 32. Qc4# {[%emt 0:00:06] Black got outplayed after the opening.   Weighted Error Value: White=0.03 (flawless) /Black=0.76.  Mistake:       	---       	Black=2      Inaccurate:     	---       	Black=2      OK:         	White=5     	Black=4      Best:        	White=1     	---} *

[Event "3rd Manaus Open 2024"]
[Site "Manaus"]
[Date "2024.10.17"]
[Round "8.7"]
[White "Flom, Gabriel"]
[Black "Da Silva, Lucas Fabricio De O"]
[Result "1-0"]
[ECO "D17"]
[WhiteElo "2460"]
[BlackElo "1802"]
[Annotator "RC"]
[PlyCount "63"]
[EventDate "2024.10.05"]
[EventType "swiss"]
[EventCountry "BRA"]
[SourceTitle "playchess.com"]
[Source "ChessBase"]
[SourceQuality "1"]
[TimeControl "5400+30"]

1. d4 {[%emt 0:00:03]} d5 {[%emt 0:01:25]} 2. c4 {[%emt 0:00:04]} c6 {[%emt 0:01:09]} 3. Nc3 {[%emt 0:00:04]} Nf6 {[%emt 0:01:05]} 4. Nf3 {[%emt 0:00:06]} dxc4 {[%emt 0:01:50]} 5. a4 {[%emt 0:00:09]} Bf5 {[%emt 0:00:42]} 6. Ne5 {[%emt 0:00:06]} Nbd7 {[%emt 0:00:40]} 7. Nxc4 {[%emt 0:00:05]} Qc7 {[%emt 0:00:18]} 8. g3 {[%emt 0:00:28]} e5 {[%emt 0:01:47]} 9. dxe5 {[%emt 0:00:06]} Nxe5 {[%emt 0:00:27]} 10. Bf4 {[%emt 0:00:12]} Nfd7 {[%emt 0:00:56]} 11. Bg2 {[%emt 0:00:37]} g5 {[%emt 0:06:43]} 12. Ne3 {[%emt 0:00:18]} gxf4 {[%emt 0:01:18]} 13. Nxf5 {[%emt 0:00:03]} O-O-O {[%emt 0:09:03]} 14. O-O {[%emt 0:00:19]} fxg3 {[%emt 0:15:24]} 15. hxg3 {[%emt 0:00:05]} Nf6 {[%emt 0:07:33]} 16. Qc2 {[%emt 0:01:07]} Nfg4 {[%emt 0:03:28]} 17. Rfd1 {[%emt 0:02:48]} Bc5 {[%emt 0:03:35]} 18. Ne4 {[%emt 0:01:06]} Bb6 {[%emt 0:03:21]} 19. e3 {[%emt 0:01:52]} h5 {[%emt 0:02:30]} 20. b4 {[%emt 0:05:59]} a5 {[%emt 0:03:29]} 21. bxa5 {[%emt 0:00:57]} Rxd1+ {[%emt 0:00:13]} 22. Rxd1 {[%emt 0:00:29]} Bxa5 {[%emt 0:00:14]} 23. Ned6+ {[%emt 0:03:52]} Kb8 {[%emt 0:00:12]} 24. Rb1 {[%emt 0:02:30]} b6 {[%emt 0:01:04]} 25. f4 {[%emt 0:11:21]} Nd7 {[%emt 0:13:09]} 26. Nc4 {[%emt 0:00:26]} Ka7 {[%emt 0:03:05]} 27. Nxa5 {[%emt 0:00:16]} bxa5 {[%emt 0:00:07]} 28. Nd4 {[%emt 0:01:00]} Qd6 {[%emt 0:07:01]} 29. Nxc6+ {[%emt 0:00:10]} Ka8 {[%emt 0:00:12]} 30. Nd8+ {[%emt 0:00:18]} Ka7 {[%emt 0:00:22]} 31. Rb7+ {[%emt 0:00:05]} Ka6 {[%emt 0:00:14]} 32. Qc4# {[%emt 0:00:06]} 1-0

[Event "3rd Manaus Open 2024"]
[Site "Manaus"]
[Date "2024.10.17"]
[Round "8.8"]
[White "Souza Neves, Andrey M."]
[Black "Hoffman, Alejandro"]
[Result "0-1"]
[ECO "B51"]
[WhiteElo "2154"]
[BlackElo "2356"]
[Annotator "RC"]
[PlyCount "62"]
[EventDate "2024.10.05"]
[EventType "swiss"]
[EventCountry "BRA"]
[SourceTitle "playchess.com"]
[Source "ChessBase"]
[SourceQuality "1"]
[TimeControl "5400+30"]

1. e4 {[%emt 0:00:04]} c5 {[%emt 0:00:53]} 2. Nf3 {[%emt 0:00:07]} d6 {[%emt 0:00:10]} 3. Bb5+ {[%emt 0:00:09]} Nc6 {[%emt 0:01:01]} 4. O-O {[%emt 0:00:55]} Bd7 {[%emt 0:00:21]} 5. c3 {[%emt 0:00:50]} a6 {[%emt 0:01:09]} 6. Ba4 {[%emt 0:00:22]} Nf6 {[%emt 0:02:48]} 7. Bc2 {[%emt 0:01:20]} e5 {[%emt 0:05:58]} 8. d4 {[%emt 0:01:54]} Be7 {[%emt 0:07:38]} 9. d5 {[%emt 0:02:25]} Nb8 {[%emt 0:05:09]} 10. h3 {[%emt 0:10:40]} O-O {[%emt 0:01:57]} 11. a4 {[%emt 0:00:20]} Ne8 {[%emt 0:04:11]} 12. Nbd2 {[%emt 0:01:52]} g6 {[%emt 0:03:03]} 13. Nc4 {[%emt 0:01:34]} f5 {[%emt 0:12:26]} 14. Bh6 {[%emt 0:04:12]} Rf7 {[%emt 0:50:46]} 15. exf5 {[%emt 0:26:43]} gxf5 {[%emt 0:00:00]} 16. Nfxe5 {[%emt 0:10:55]} dxe5 {[%emt 0:00:00]} 17. Nxe5 {[%emt 0:00:05]} Rf6 {[%emt 0:00:00]} 18. Qd2 {[%emt 0:05:37]} Nd6 {[%emt 0:00:00]} 19. Rae1 {[%emt 0:05:17]} Be8 {[%emt 0:00:00]} 20. Bg5 {[%emt 0:06:29]} Nd7 {[%emt 0:00:00]} 21. g4 {[%emt 0:05:04]} Nxe5 {[%emt 0:00:00]} 22. Rxe5 {[%emt 0:00:07]} Nc4 {[%emt 0:00:00]} 23. Qe2 {[%emt 0:05:19]} Nxe5 {[%emt 0:00:00]} 24. Qxe5 {[%emt 0:00:10]} Rf7 {[%emt 0:00:00]} 25. Bf4 {[%emt 0:01:53]} Bf6 {[%emt 0:00:00]} 26. Qxf5 {[%emt 0:01:52]} Bxc3 {[%emt 0:00:00]} 27. Qe6 {[%emt 0:02:40]} Bxb2 {[%emt 0:00:00]} 28. d6 {[%emt 0:03:02]} Qf6 {[%emt 0:00:00]} 29. Bb3 {[%emt 0:00:46]} Qxf4 {[%emt 0:00:00]} 30. d7 {[%emt 0:00:45]} Bxd7 {[%emt 0:00:00]} 31. Qxd7 {[%emt 0:00:10]} c4 {[%emt 0:00:00]} 0-1

[Event "3rd Manaus Open 2024"]
[Site "Manaus"]
[Date "2024.10.17"]
[Round "8.9"]
[White "Perdomo, Leandro"]
[Black "Gauche, Charles"]
[Result "1/2-1/2"]
[ECO "A80"]
[WhiteElo "2356"]
[BlackElo "2168"]
[Annotator "RC"]
[PlyCount "94"]
[EventDate "2024.10.05"]
[EventType "swiss"]
[EventCountry "BRA"]
[SourceTitle "playchess.com"]
[Source "ChessBase"]
[SourceQuality "1"]
[TimeControl "5400+30"]

1. d4 {[%emt 0:00:03]} f5 {[%emt 0:03:03]} 2. Bg5 {[%emt 0:01:26]} Nf6 {[%emt 0:02:06]} 3. Bxf6 {[%emt 0:00:19]} exf6 {[%emt 0:00:09]} 4. e3 {[%emt 0:00:14]} d5 {[%emt 0:03:01]} 5. c4 {[%emt 0:00:17]} c6 {[%emt 0:06:56]} 6. cxd5 {[%emt 0:04:15]} Qxd5 {[%emt 0:01:38]} 7. Nc3 {[%emt 0:01:30]} Qf7 {[%emt 0:00:24]} 8. Bd3 {[%emt 0:05:21]} Bd6 {[%emt 0:01:25]} 9. Qc2 {[%emt 0:02:31]} g6 {[%emt 0:01:45]} 10. Nge2 {[%emt 0:12:41]} O-O {[%emt 0:04:52]} 11. O-O {[%emt 0:11:43]} Be6 {[%emt 0:07:08]} 12. e4 {[%emt 0:08:28]} fxe4 {[%emt 0:09:19]} 13. Nxe4 {[%emt 0:00:10]} Qc7 {[%emt 0:06:51]} 14. f4 {[%emt 0:26:14]} Be7 {[%emt 0:20:31]} 15. Nc5 {[%emt 0:07:44]} Bxc5 {[%emt 0:04:29]} 16. dxc5 {[%emt 0:00:02]} Na6 {[%emt 0:02:10]} 17. a3 {[%emt 0:08:35]} Bf7 {[%emt 0:05:09]} 18. Ng3 {[%emt 0:01:33]} f5 {[%emt 0:00:56]} 19. Qc3 {[%emt 0:02:37]} Bd5 {[%emt 0:02:37]} 20. Rae1 {[%emt 0:01:09]} Qf7 {[%emt 0:04:47]} 21. Re5 {[%emt 0:00:39]} Rae8 {[%emt 0:00:58]} 22. Rfe1 {[%emt 0:00:27]} Rxe5 {[%emt 0:00:38]} 23. Rxe5 {[%emt 0:00:33]} Nc7 {[%emt 0:01:03]} 24. Nf1 {[%emt 0:01:53]} Ne6 {[%emt 0:01:03]} 25. g3 {[%emt 0:00:01]} Nc7 {[%emt 0:01:23]} 26. Ne3 {[%emt 0:00:09]} Be6 {[%emt 0:00:15]} 27. Nc4 {[%emt 0:00:39]} Nb5 {[%emt 0:00:30]} 28. Qb4 {[%emt 0:01:16]} Qd7 {[%emt 0:00:35]} 29. Nd6 {[%emt 0:00:23]} a5 {[%emt 0:00:34]} 30. Qe1 {[%emt 0:00:50]} Nxd6 {[%emt 0:01:18]} 31. cxd6 {[%emt 0:00:02]} Qxd6 {[%emt 0:00:52]} 32. Rxe6 {[%emt 0:01:41]} Qxd3 {[%emt 0:00:28]} 33. Re7 {[%emt 0:00:32]} Qd4+ {[%emt 0:00:14]} 34. Kf1 {[%emt 0:00:33]} Qc4+ {[%emt 0:00:34]} 35. Kg2 {[%emt 0:00:38]} Qd5+ {[%emt 0:02:24]} 36. Kh3 {[%emt 0:00:05]} Rf7 {[%emt 0:00:19]} 37. Re5 {[%emt 0:00:27]} Qf3 {[%emt 0:00:36]} 38. Rxa5 {[%emt 0:00:33]} Kg7 {[%emt 0:00:41]} 39. Re5 {[%emt 0:00:53]} Kh6 {[%emt 0:01:45]} 40. Re7 {[%emt 0:00:02]} Rxe7 {[%emt 0:03:03]} 41. Qxe7 {[%emt 0:00:01]} b5 {[%emt 0:00:10]} 42. Qg5+ {[%emt 0:01:15]} Kg7 {[%emt 0:00:01]} 43. Qe7+ {[%emt 0:00:06]} Kh6 {[%emt 0:00:05]} 44. b4 {[%emt 0:01:03]} Qg4+ {[%emt 0:01:12]} 45. Kg2 {[%emt 0:00:02]} Qd1 {[%emt 0:00:14]} 46. Qg5+ {[%emt 0:00:42]} Kg7 {[%emt 0:00:03]} 47. Qe7+ {[%emt 0:00:05]} Kh6 {[%emt 0:03:46]} 1/2-1/2

[Event "3rd Manaus Open 2024"]
[Site "Manaus"]
[Date "2024.10.17"]
[Round "8.10"]
[White "Lira, Suan Bruno Fernandes"]
[Black "Piccoli, Lucas Fonseca"]
[Result "1/2-1/2"]
[ECO "B15"]
[WhiteElo "2037"]
[BlackElo "2266"]
[Annotator "RC"]
[PlyCount "148"]
[EventDate "2024.10.05"]
[EventType "swiss"]
[EventCountry "BRA"]
[SourceTitle "playchess.com"]
[Source "ChessBase"]
[SourceQuality "1"]
[TimeControl "5400+30"]

1. e4 {[%emt 0:00:11]} c6 {[%emt 0:00:11]} 2. d4 {[%emt 0:00:13]} d5 {[%emt 0:00:13]} 3. Nc3 {[%emt 0:00:50]} dxe4 {[%emt 0:00:07]} 4. Nxe4 {[%emt 0:00:05]} Nf6 {[%emt 0:00:08]} 5. Nxf6+ {[%emt 0:00:04]} exf6 {[%emt 0:00:07]} 6. c3 {[%emt 0:00:35]} Bd6 {[%emt 0:00:06]} 7. Bd3 {[%emt 0:00:04]} O-O {[%emt 0:00:11]} 8. Ne2 {[%emt 0:00:16]} Re8 {[%emt 0:00:34]} 9. Qc2 {[%emt 0:00:15]} h5 {[%emt 0:00:07]} 10. O-O {[%emt 0:00:15]} h4 {[%emt 0:00:07]} 11. h3 {[%emt 0:00:04]} Nd7 {[%emt 0:07:49]} 12. Be3 {[%emt 0:00:50]} Nf8 {[%emt 0:01:11]} 13. Rad1 {[%emt 0:00:10]} Bd7 {[%emt 0:03:39]} 14. Rfe1 {[%emt 0:03:43]} Qc8 {[%emt 0:04:05]} 15. Nf4 {[%emt 0:01:08]} f5 {[%emt 0:12:51]} 16. c4 {[%emt 0:07:30]} Nh7 {[%emt 0:09:40]} 17. c5 {[%emt 1:22:47]} Bxf4 {[%emt 0:03:05]} 18. Bxf4 {[%emt 0:00:00]} Be6 {[%emt 0:00:08]} 19. d5 {[%emt 0:00:00]} cxd5 {[%emt 0:01:04]} 20. Be5 {[%emt 0:00:00]} f6 {[%emt 0:07:54]} 21. Bd4 {[%emt 0:00:00]} Ng5 {[%emt 0:08:40]} 22. f3 {[%emt 0:00:00]} f4 {[%emt 0:05:19]} 23. Qf2 {[%emt 0:00:00]} Bxh3 {[%emt 0:02:33]} 24. Qxh4 {[%emt 0:00:00]} Rxe1+ {[%emt 0:04:48]} 25. Rxe1 {[%emt 0:00:00]} Bf5 {[%emt 0:00:15]} 26. Bb5 {[%emt 0:00:00]} Qc7 {[%emt 0:03:05]} 27. Ba4 {[%emt 0:00:00]} Ne6 {[%emt 0:02:10]} 28. Bb3 {[%emt 0:05:30]} Rd8 {[%emt 0:02:13]} 29. Qh5 {[%emt 0:00:00]} Qf7 {[%emt 0:13:36]} 30. Qxf5 {[%emt 0:00:00]} Nxd4 {[%emt 0:00:03]} 31. Qxf4 {[%emt 0:00:00]} Nxb3 {[%emt 0:00:02]} 32. axb3 {[%emt 0:00:00]} d4 {[%emt 0:00:05]} 33. Rd1 {[%emt 0:00:00]} Qd5 {[%emt 0:01:11]} 34. b4 {[%emt 0:00:00]} a6 {[%emt 0:01:52]} 35. b3 {[%emt 0:00:00]} d3 {[%emt 0:03:50]} 36. Qc4 {[%emt 0:00:00]} Qxc4 {[%emt 0:00:28]} 37. bxc4 {[%emt 0:00:00]} Rd4 {[%emt 0:00:02]} 38. b5 {[%emt 0:00:00]} Rxc4 {[%emt 0:01:08]} 39. bxa6 {[%emt 0:00:00]} bxa6 {[%emt 0:00:01]} 40. Rxd3 {[%emt 0:00:00]} Rxc5 {[%emt 0:00:02]} 41. Rd7 {[%emt 0:00:00]} Kh7 {[%emt 0:02:09]} 42. Ra7 {[%emt 0:00:00]} Rc6 {[%emt 0:02:34]} 43. Kf2 {[%emt 0:00:00]} f5 {[%emt 0:00:55]} 44. Ke3 {[%emt 0:00:00]} Kg6 {[%emt 0:00:36]} 45. Kd4 {[%emt 0:00:00]} Kh6 {[%emt 0:00:56]} 46. Ke5 {[%emt 0:00:00]} g6 {[%emt 0:00:07]} 47. Kf4 {[%emt 0:00:00]} Re6 {[%emt 0:00:33]} 48. g4 {[%emt 0:00:00]} fxg4 {[%emt 0:00:01]} 49. Kxg4 {[%emt 0:00:00]} Rb6 {[%emt 0:01:31]} 50. f4 {[%emt 0:00:00]} Rf6 {[%emt 0:00:15]} 51. Kg3 {[%emt 0:00:00]} g5 {[%emt 0:00:57]} 52. fxg5+ {[%emt 0:00:00]} Kxg5 {[%emt 0:01:16]} 53. Ra8 {[%emt 0:12:30]} Kf5 {[%emt 0:00:00]} 54. Kf3 {[%emt 0:00:00]} Ke5+ {[%emt 0:00:21]} 55. Ke3 {[%emt 0:00:00]} Kd5 {[%emt 0:00:18]} 56. Rc8 {[%emt 0:00:00]} Rb6 {[%emt 0:00:36]} 57. Kd3 {[%emt 0:00:00]} a5 {[%emt 0:00:40]} 58. Kc3 {[%emt 0:00:00]} Rb4 {[%emt 0:00:31]} 59. Ra8 {[%emt 0:00:00]} Rb5 {[%emt 0:00:01]} 60. Rc8 {[%emt 0:00:00]} Kd6 {[%emt 0:00:12]} 61. Kc4 {[%emt 0:00:00]} Rb4+ {[%emt 0:00:01]} 62. Kc3 {[%emt 0:00:00]} Rb5 {[%emt 0:01:28]} 63. Kc4 {[%emt 0:00:00]} Rf5 {[%emt 0:00:47]} 64. Kb3 {[%emt 0:00:00]} Kd7 {[%emt 0:00:07]} 65. Rc1 {[%emt 0:06:00]} Rf4 {[%emt 0:00:42]} 66. Rc4 {[%emt 0:00:00]} Rxc4 {[%emt 0:00:36]} 67. Kxc4 {[%emt 0:00:00]} Kc6 {[%emt 0:00:01]} 68. Kb3 {[%emt 0:00:00]} Kb5 {[%emt 0:00:05]} 69. Ka2 {[%emt 0:00:00]} Kb4 {[%emt 0:00:06]} 70. Ka1 {[%emt 0:00:00]} a4 {[%emt 0:00:04]} 71. Ka2 {[%emt 0:00:00]} a3 {[%emt 0:00:04]} 72. Ka1 {[%emt 0:00:00]} Kb3 {[%emt 0:00:04]} 73. Kb1 {[%emt 0:00:00]} a2+ {[%emt 0:00:03]} 74. Ka1 {[%emt 0:00:00]} Ka3 {[%emt 0:00:04]} 1/2-1/2